bitfinex-derivatives/quotes_BNBF0:USTF0_20250413
["timestamp","ask_amount","ask_price","bid_price","bid_amount"]
[1744529496206,0.29332311,593.8,593.02,3.968]
[1744529496411,0.30983636,593.79,593.02,3.968]
[1744529497707,0.29332311,593.8,593.02,3.968]
[1744529497909,0.30983151,593.79,593.02,3.968]
[1744529502117,0.30983151,593.78,593.02,3.968]
[1744529502317,0.30983151,593.81,593.02,3.968]
[1744529502517,0.30983151,593.8,593.02,3.968]
[1744529502717,0.30983151,593.79,593.02,3.968]
[1744529502919,0.30983151,593.81,593.02,3.968]
[1744529503117,0.30983151,593.8,593.02,3.968]
[1744529503317,0.30983151,593.81,593.02,3.968]
[1744529503620,0.30983151,593.8,593.02,3.968]
[1744529503919,0.30983151,593.79,593.02,3.968]
[1744529504115,0.30983151,593.81,593.02,3.968]
[1744529505019,0.30983151,593.84,593.02,3.968]
[1744529505916,1.28024234,593.82,593.02,3.968]
[1744529506122,0.30983151,593.81,593.02,3.968]
[1744529507926,1.59007385,593.81,593.02,3.968]
[1744529508225,0.30983151,593.8,593.02,3.968]
[1744529509026,1.28024234,593.81,593.02,3.968]
[1744529509327,0.29334412,593.79,593.02,3.968]
[1744529509525,0.30987193,593.78,593.02,3.968]
[1744529510626,0.29334412,593.79,593.02,3.968]
[1744529510825,0.30987582,593.78,593.02,3.968]
[1744529511026,0.30987582,593.8,593.02,3.968]
[1744529512130,0.29337875,593.79,593.02,3.968]
[1744529512331,0.30992086,593.78,593.02,3.95624357]
[1744529512531,0.30992086,593.77,593.02,3.307]
[1744529512830,0.30992086,593.76,593.02,3.307]
[1744529513031,0.30992086,593.78,593.02,3.307]
[1744529513227,0.30992086,593.77,593.02,3.307]
[1744529513531,0.30992086,593.76,593.02,3.307]
[1744529513731,0.29337875,593.79,593.02,3.307]
[1744529513934,0.30994958,593.78,593.02,3.307]
[1744529514227,0.30994958,593.77,593.02,3.307]
[1744529514431,0.30994958,593.76,593.02,3.307]
[1744529514632,0.30994958,593.75,593.02,3.307]
[1744529514832,0.33677971,593.86,593.02,3.307]
[1744529514833,0.30994958,593.74,593.02,3.307]
[1744529515033,0.2933874,593.74,593.02,3.307]
[1744529515234,0.30994958,593.73,593.02,3.307]
[1744529516135,0.33685912,593.72,593.02,3.307]
[1744529516430,0.30994958,593.71,593.02,3.307]
[1744529516836,0.33685912,593.72,593.02,3.307]
[1744529517131,0.30994834,593.71,593.02,3.307]
[1744529517438,0.33687047,593.7,593.02,3.307]
[1744529517735,0.30994834,593.69,593.02,3.307]
[1744529517930,0.33688182,593.68,593.02,3.307]
[1744529518133,0.30994834,593.67,593.02,3.307]
[1744529518335,0.33689317,593.66,593.02,3.307]
[1744529518534,0.30994834,593.65,593.02,3.307]
[1744529520038,0.33689317,593.66,593.02,3.307]
[1744529520236,0.30995708,593.65,593.02,3.307]
[1744529520438,0.29341214,593.64,593.02,3.307]
[1744529520737,0.30995708,593.63,593.02,3.307]
[1744529523141,0.30995708,593.62,593.02,3.307]
[1744529523442,0.30995708,593.65,593.02,3.307]
[1744529523636,0.30995708,593.64,593.02,3.307]
[1744529523835,0.30995708,593.65,593.02,3.307]
[1744529524037,0.30995708,593.64,593.02,3.307]
[1744529524241,0.29341214,593.63,593.02,3.307]
[1744529524437,0.30995575,593.62,593.02,3.307]
[1744529526039,0.30995575,593.65,593.02,3.307]
[1744529526241,0.29341585,593.61,593.02,3.307]
[1744529526439,0.30995575,593.6,593.02,3.307]
[1744529529143,0.30995575,593.59,593.02,3.307]
[1744529529338,0.30995575,593.65,593.02,3.307]
[1744529529537,0.33689317,593.66,593.02,3.307]
[1744529529538,0.30995575,593.64,593.02,3.307]
[1744529529737,0.30995575,593.65,593.02,3.307]
[1744529530143,0.29340472,593.64,593.02,3.307]
[1744529530347,0.30995575,593.63,593.02,3.307]
[1744529530743,0.30994823,593.62,593.02,3.307]
[1744529530942,0.30994823,593.63,593.02,3.307]
[1744529532038,0.30994823,593.65,593.02,3.307]
[1744529532241,0.29340719,593.62,593.02,3.307]
[1744529532440,0.30994823,593.61,593.02,3.307]
[1744529535046,0.30994823,593.6,593.02,3.307]
[1744529535247,0.30994823,593.65,593.02,3.307]
[1744529535449,0.30994823,593.64,593.02,3.307]
[1744529535643,0.30994823,593.63,593.02,3.307]
[1744529535840,0.30994823,593.65,593.02,3.307]
[1744529536043,0.30994823,593.64,593.02,3.307]
[1744529536245,0.29340472,593.62,593.02,3.307]
[1744529536442,0.30994823,593.61,593.02,3.307]
[1744529538050,0.30994823,593.6,593.02,3.307]
[1744529538349,0.30994823,593.59,593.02,3.307]
[1744529538549,0.30994823,593.65,593.02,3.307]
[1744529539149,0.29340472,593.64,593.02,3.307]
[1744529539450,0.64685842,593.63,593.02,3.307]
[1744529539749,0.6468641,593.62,593.02,3.307]
[1744529539951,0.64686977,593.61,593.02,3.307]
[1744529540150,0.64687545,593.6,593.02,3.307]
[1744529540451,0.64688112,593.59,593.02,3.307]
[1744529540651,0.30994823,593.58,593.02,3.307]
[1744529541251,0.29343812,593.57,593.02,3.307]
[1744529541452,0.30994823,593.56,593.02,3.307]
[1744529543253,0.29343812,593.57,593.02,3.307]
[1744529543556,0.31000346,593.56,593.02,3.307]
[1744529544252,0.60344405,593.55,593.02,3.307]
[1744529544452,0.31000346,593.54,593.02,3.307]
[1744529547170,0.31000346,593.53,593.02,3.307]
[1744529547350,0.31000346,593.58,593.02,3.307]
[1744529547556,0.31000346,593.57,593.02,3.307]
[1744529547752,0.31000346,593.58,593.02,3.307]
[1744529547953,0.64694771,593.57,593.02,3.307]
[1744529548151,0.63039546,593.56,593.02,3.307]
[1744529548356,0.31000718,593.55,593.02,3.307]
[1744529549651,0.63039546,593.56,593.02,3.307]
[1744529549857,0.31000493,593.55,593.02,3.307]
[1744529551159,0.29344183,593.54,593.02,3.307]
[1744529551460,0.31000493,593.53,593.02,3.307]
[1744529553055,0.31000493,593.55,593.02,3.307]
[1744529553255,0.2934443,593.52,593.02,3.307]
[1744529553459,0.31000493,593.51,593.02,3.307]
[1744529556059,0.33694992,593.56,593.02,3.307]
[1744529556265,0.29344678,593.5,593.02,3.307]
[1744529556566,0.3099975,593.49,593.02,3.307]
[1744529557665,0.29344678,593.5,593.02,3.307]
[1744529557864,0.31001208,593.49,593.02,3.307]
[1744529559061,0.31001208,593.55,593.02,3.307]
[1744529559266,0.2934542,593.48,593.02,3.307]
[1744529559566,0.33696128,593.54,593.02,3.307]
[1744529559567,0.31004289,593.47,593.02,3.307]
[1744529559766,0.31004289,593.53,593.02,3.307]
[1744529559968,0.31004289,593.52,593.02,3.307]
[1744529560263,0.60350204,593.52,593.02,3.307]
[1744529560468,0.31004289,593.51,593.02,3.307]
[1744529560868,0.29345915,593.52,593.02,3.307]
[1744529561068,0.31004131,593.51,593.02,3.307]
[1744529562068,0.31004131,593.52,593.02,3.307]
[1744529562368,0.29346162,593.5,593.02,3.307]
[1744529562668,0.31004131,593.49,593.02,3.307]
[1744529564069,0.29346162,593.5,593.02,3.307]
[1744529564269,0.31005001,593.49,593.02,3.307]
[1744529565070,0.31005001,593.52,593.02,3.307]
[1744529565264,0.2934641,593.48,593.02,3.307]
[1744529565569,0.31005001,593.47,593.02,3.307]
[1744529565769,0.31004947,593.46,593.02,3.307]
[1744529565969,0.31004947,593.47,593.02,3.307]
[1744529566273,0.31004947,593.46,593.02,3.307]
[1744529566466,0.31004947,593.47,593.02,3.307]
[1744529566668,0.31004947,593.46,593.02,3.307]
[1744529566868,0.31004947,593.47,593.02,3.307]
[1744529567167,0.31004947,593.46,593.02,3.307]
[1744529567369,0.31004947,593.47,593.02,3.307]
[1744529567564,0.31004947,593.46,593.02,3.307]
[1744529567769,0.31004947,593.45,593.02,3.307]
[1744529567969,0.31004947,593.47,593.02,3.307]
[1744529568169,0.31004947,593.46,593.02,3.307]
[1744529568370,0.31004947,593.52,593.02,3.307]
[1744529568566,0.64702778,593.51,593.02,3.307]
[1744529568771,0.64703346,593.5,593.02,3.307]
[1744529568972,0.31004947,593.49,593.02,3.307]
[1744529570570,0.63045428,593.5,593.02,3.307]
[1744529570776,0.31004508,593.49,593.02,3.307]
[1744529572072,0.29347152,593.48,593.02,3.307]
[1744529572274,0.31003811,593.47,593.02,3.307]
[1744529574681,0.33698399,593.5,593.02,3.307]
[1744529574682,0.31003811,593.49,593.02,3.307]
[1744529574876,0.33698399,593.5,593.02,3.307]
[1744529574877,0.31003811,593.48,593.02,3.307]
[1744529575176,0.31003811,593.47,593.02,3.307]
[1744529575377,0.31003811,593.46,593.02,3.307]
[1744529575577,0.31003811,593.49,593.02,3.307]
[1744529575876,0.29347152,593.46,593.02,3.307]
[1744529576176,0.31003811,593.45,593.02,3.307]
[1744529577071,0.31003811,593.49,593.02,3.307]
[1744529577274,0.29347647,593.44,593.02,3.307]
[1744529577476,0.31003811,593.43,593.02,3.307]
[1744529578779,0.31003744,593.42,593.02,3.307]
[1744529578981,0.31003744,593.43,593.02,3.307]
[1744529579178,0.31003744,593.42,593.02,3.307]
[1744529579474,0.31003744,593.41,593.02,3.307]
[1744529579675,0.31003744,593.4,593.02,3.307]
[1744529579980,0.31003744,593.39,592.82,0.607]
[1744529580280,0.31003744,593.38,592.82,0.607]
[1744529580683,0.31003035,593.37,592.82,0.607]
[1744529580876,0.31003035,593.36,592.82,0.607]
[1744529581078,0.31003035,593.38,592.82,0.607]
[1744529581280,0.31003035,593.37,592.82,0.607]
[1744529581479,0.31003035,593.38,592.82,0.607]
[1744529581679,0.31003035,593.37,592.82,0.607]
[1744529581986,0.31003035,593.36,592.82,0.607]
[1744529582279,0.31003035,593.35,592.82,0.607]
[1744529582484,0.31003035,593.34,592.83,0.43]
[1744529582685,0.31003035,593.38,592.83,0.43]
[1744529582884,0.3100305,593.37,592.83,0.43]
[1744529583185,0.3100305,593.36,592.84,1.653]
[1744529583380,0.29350246,593.4,592.84,2.325]
[1744529583581,0.3100305,593.39,592.84,2.325]
[1744529584488,0.3100307,593.38,592.84,2.325]
[1744529584688,0.3100307,593.37,592.84,2.325]
[1744529584982,0.3100307,593.36,592.84,2.325]
[1744529585182,0.3100307,593.39,592.84,2.325]
[1744529586186,0.3100307,593.38,592.84,2.325]
[1744529586386,0.29349875,593.4,592.84,2.325]
[1744529586586,0.3100307,593.39,592.84,2.325]
[1744529587587,0.29349875,593.4,592.84,2.325]
[1744529587788,0.31003057,593.38,592.84,2.325]
[1744529587982,0.31003057,593.37,592.84,2.325]
[1744529588283,0.31003057,593.36,592.84,2.325]
[1744529588486,0.31003057,593.39,592.84,2.325]
[1744529588986,0.31003057,593.49,592.84,2.325]
[1744529589187,0.29349132,593.43,592.84,2.325]
[1744529589486,0.31003057,593.42,592.84,2.325]
[1744529590788,0.29349132,593.43,592.84,2.325]
[1744529590987,0.31003074,593.42,592.84,2.325]
[1744529592089,0.31003074,593.49,592.84,2.325]
[1744529592291,0.29348514,593.44,592.84,2.325]
[1744529592485,0.31003074,593.43,592.84,2.325]
[1744529595191,0.31003074,593.42,592.84,2.325]
[1744529595385,0.31003074,593.43,592.84,1.653]
[1744529596187,0.31003074,593.43,592.84,1.011]
[1744529597191,0.31003074,593.43,592.84,0.613]
[1744529598091,0.31003074,593.49,592.84,0.613]
[1744529598285,0.2934839,593.44,592.84,0.613]
[1744529598487,0.31003074,593.43,592.84,0.613]
[1744529598791,0.2934839,593.44,592.84,0.613]
[1744529598792,0.2934839,593.44,592.85,0.658]
[1744529599092,0.3100473,593.43,592.85,0.658]
[1744529599591,0.3100473,593.43,592.86,0.526]
[1744529600688,0.3100473,593.43,592.87,0.385]
[1744529601089,1.28024234,593.45,592.87,0.385]
[1744529601393,0.3100473,593.44,592.87,0.385]
[1744529602192,0.29349009,593.43,592.87,0.385]
[1744529602393,0.3100473,593.42,592.87,0.385]
[1744529603694,0.29349009,593.43,592.87,0.385]
[1744529603894,0.31005702,593.42,592.87,0.385]
[1744529604194,0.310057,593.41,592.87,0.385]
[1744529604493,0.310057,593.4,592.87,0.385]
[1744529604789,0.310057,593.39,592.87,0.385]
[1744529604992,0.310057,593.38,592.87,0.385]
[1744529605190,0.29349256,593.39,592.87,0.385]
[1744529605393,0.310057,593.38,592.87,0.385]
[1744529607095,0.31004714,593.37,592.87,0.385]
[1744529607394,0.31004714,593.36,592.87,0.385]
[1744529607693,0.31004714,593.37,592.87,0.385]
[1744529607892,0.31004714,593.36,592.87,0.385]
[1744529608093,0.31004714,593.37,592.87,0.385]
[1744529608393,0.31004714,593.36,592.87,0.385]
[1744529608595,0.31004714,593.37,592.87,0.385]
[1744529610090,0.31004714,593.49,592.87,0.385]
[1744529610294,0.2935037,593.38,592.87,0.385]
[1744529610495,0.31004821,593.37,592.87,0.385]
[1744529610792,0.31004821,593.36,592.87,0.385]
[1744529611094,0.31004821,593.35,592.87,0.385]
[1744529611294,0.2934938,593.36,592.87,0.385]
[1744529611498,0.31004821,593.35,592.87,0.385]
[1744529612692,0.31004821,593.35,592.86,0.526]
[1744529613097,0.31004821,593.49,592.86,0.526]
[1744529613296,0.29351236,593.36,592.86,0.526]
[1744529613497,0.33698967,593.49,592.86,0.526]
[1744529613697,0.31005406,593.48,592.87,0.541]
[1744529614300,0.29349504,593.47,592.87,0.541]
[1744529614497,0.29349504,593.47,592.88,0.635]
[1744529614701,0.31005406,593.46,592.88,0.635]
[1744529615600,0.31005406,593.46,592.89,0.709]
[1744529615900,1.28024234,593.45,592.89,0.709]
[1744529616200,0.31005406,593.44,592.89,0.709]
[1744529616400,0.60355033,593.44,592.89,0.709]
[1744529616602,0.31005406,593.43,592.89,0.709]
[1744529616801,0.29349627,593.44,592.89,0.709]
[1744529616999,0.31005588,593.43,592.89,0.709]
[1744529619103,0.31005588,593.47,592.89,0.709]
[1744529620207,0.29349256,593.46,592.89,0.709]
[1744529620408,0.31005588,593.45,592.9,0.625]
[1744529621608,0.29349256,593.46,592.9,0.625]
[1744529621809,0.31004849,593.45,592.9,0.625]
[1744529622208,0.2934938,593.44,592.9,0.625]
[1744529622409,0.31004849,593.43,592.9,0.625]
[1744529623209,0.2934938,593.44,592.9,0.625]
[1744529623404,0.31004875,593.43,592.9,0.625]
[1744529625114,0.31004875,593.48,592.9,0.625]
[1744529625415,0.29349627,593.42,592.9,0.625]
[1744529625614,0.31004875,593.41,592.9,0.625]
[1744529626010,0.31004875,593.41,592.9,1.336]
[1744529626513,0.29349627,593.42,592.9,1.336]
[1744529626709,0.31004853,593.41,592.9,1.336]
[1744529628117,0.29349627,593.42,592.9,1.336]
[1744529628412,0.3100665,593.41,592.9,1.336]
[1744529631321,0.33698967,593.49,592.9,1.336]
[1744529631521,0.31005198,593.48,592.9,1.336]
[1744529632215,0.29349009,593.47,592.9,1.336]
[1744529632414,0.31005198,593.46,592.9,1.336]
[1744529632920,0.29349009,593.47,592.9,1.336]
[1744529633121,0.31005268,593.46,592.9,1.336]
[1744529634117,0.31005268,593.48,592.9,1.336]
[1744529634316,0.31005268,593.48,592.9,1.887]
[1744529635425,0.29349009,593.47,592.9,1.887]
[1744529635626,0.31005268,593.46,592.9,1.887]
[1744529637125,0.31005268,593.48,592.9,1.887]
[1744529637320,0.29349256,593.45,592.9,1.887]
[1744529637521,0.31005268,593.44,592.9,1.887]
[1744529639026,0.29349256,593.45,592.9,1.887]
[1744529639925,0.31004623,593.44,592.9,2.501]
[1744529640126,0.31004623,593.48,592.9,2.501]
[1744529640426,0.29349009,593.43,592.9,2.501]
[1744529640625,0.31004623,593.42,592.9,2.501]
[1744529640826,0.31004555,593.41,592.9,2.501]
[1744529641125,0.31004555,593.42,592.9,2.501]
[1744529641421,0.31004555,593.41,592.9,2.501]
[1744529641626,0.31004555,593.4,592.9,2.501]
[1744529641820,0.31004555,593.39,592.9,2.501]
[1744529642025,0.29349009,593.43,592.9,2.501]
[1744529642227,0.31004557,593.42,592.9,2.501]
[1744529643123,0.31004557,593.48,592.9,2.501]
[1744529644328,0.29349009,593.47,592.9,2.501]
[1744529644527,0.31004557,593.46,592.9,2.501]
[1744529646234,0.31004557,593.46,592.9,2.935]
[1744529646829,0.29349009,593.47,592.9,2.935]
[1744529646830,0.29349009,593.47,592.9,3.415]
[1744529647035,0.31004591,593.46,592.9,3.415]
[1744529649136,0.31004591,593.48,592.9,3.415]
[1744529650232,0.29349256,593.47,592.9,3.415]
[1744529650437,0.31004591,593.46,592.9,3.415]
[1744529652137,0.60354095,593.45,592.9,3.415]
[1744529652338,0.31004591,593.44,592.9,3.415]
[1744529654838,0.29349504,593.45,592.9,3.415]
[1744529655134,0.31005243,593.44,592.9,3.415]
[1744529655338,0.31005243,593.48,592.9,3.415]
[1744529655533,0.33700102,593.47,592.9,3.415]
[1744529655736,0.31005243,593.46,592.9,3.415]
[1744529656332,0.29349751,593.45,592.9,3.415]
[1744529656534,0.31005243,593.44,592.9,3.415]
[1744529658142,0.33700102,593.47,592.9,3.415]
[1744529658343,0.29349751,593.43,592.9,3.415]
[1744529658547,0.3100498,593.42,592.9,3.415]
[1744529661146,0.3100498,593.46,592.9,3.415]
[1744529661942,1.28024234,593.43,592.9,3.415]
[1744529662140,0.3100498,593.42,592.9,3.415]
[1744529664651,1.28024234,593.43,592.9,3.415]
[1744529664845,1.28024234,593.41,592.9,3.415]
[1744529665048,0.31004656,593.4,592.9,3.415]
[1744529665248,0.6035515,593.4,592.9,3.415]
[1744529665448,0.31004656,593.39,592.9,3.415]
[1744529666246,0.29350494,593.4,592.9,3.415]
[1744529666450,0.31004541,593.39,592.9,3.415]
[1744529667150,0.31004541,593.4,592.9,3.415]
[1744529667550,0.29350494,593.38,592.9,3.415]
[1744529667852,0.31004541,593.37,592.9,3.415]
[1744529669554,0.29350494,593.38,592.9,3.415]
[1744529669755,0.31004617,593.37,592.9,3.415]
[1744529670253,0.29350865,593.36,592.9,3.415]
[1744529670449,0.31004617,593.35,592.9,3.415]
[1744529672753,0.29350865,593.36,592.9,3.415]
[1744529672956,0.31003973,593.35,592.9,3.415]
[1744529673256,0.31003973,593.34,592.9,3.415]
[1744529673449,0.31003973,593.33,592.9,3.415]
[1744529673650,0.31003973,593.41,592.9,3.415]
[1744529674156,0.2934938,593.4,592.9,3.415]
[1744529674351,0.31003973,593.39,592.9,3.415]
[1744529676156,0.31003973,593.41,592.9,3.415]
[1744529676354,0.29349627,593.38,592.9,3.415]
[1744529676557,0.31003973,593.37,592.9,3.415]
[1744529677660,0.29349627,593.38,592.9,3.415]
[1744529677853,0.31003636,593.37,592.9,3.415]
[1744529679263,0.31003636,593.36,592.9,3.415]
[1744529679458,0.31003636,593.35,592.9,3.415]
[1744529679758,0.31003636,593.34,592.9,3.415]
[1744529679962,0.31003636,593.33,592.9,3.415]
[1744529680162,0.31003636,593.39,592.9,3.415]
[1744529680362,0.31003636,593.38,592.9,3.415]
[1744529680557,0.31003636,593.39,592.9,3.415]
[1744529680760,0.31003636,593.38,592.9,3.415]
[1744529680961,0.31003636,593.39,592.9,3.415]
[1744529682264,0.31003636,593.38,592.9,3.415]
[1744529682460,1.28024234,593.42,592.9,3.415]
[1744529682665,0.31001668,593.41,592.9,3.415]
[1744529683064,0.31001668,593.42,592.9,3.415]
[1744529684067,1.28024234,593.43,592.9,3.415]
[1744529684268,0.31001193,593.42,592.9,3.415]
[1744529684769,0.31001193,593.43,592.9,3.415]
[1744529685167,0.31001193,593.46,592.9,3.415]
[1744529685368,0.31001193,593.45,592.9,3.415]
[1744529685567,0.31001193,593.46,592.9,3.415]
[1744529685768,0.31001618,593.45,592.9,3.415]
[1744529685965,0.31001618,593.44,592.9,3.415]
[1744529686169,0.31001618,593.46,592.9,3.415]
[1744529686366,0.29347276,593.44,592.9,3.415]
[1744529686565,0.31001618,593.43,592.9,3.415]
[1744529687272,0.29347276,593.44,592.9,3.415]
[1744529687470,0.31002208,593.43,592.9,3.415]
[1744529688170,0.31002208,593.46,592.9,3.415]
[1744529688370,0.29347647,593.44,592.9,3.415]
[1744529688570,0.31002208,593.43,592.9,3.415]
[1744529691166,0.31002208,593.42,592.9,3.415]
[1744529691367,0.29347647,593.44,592.9,3.415]
[1744529691568,0.31002208,593.43,592.9,3.415]
[1744529691771,0.29347647,593.44,592.9,3.415]
[1744529692273,0.31001378,593.43,592.9,3.415]
[1744529694380,0.31001378,593.42,592.9,3.415]
[1744529694678,0.31001378,593.43,592.9,3.415]
[1744529694879,0.31001378,593.42,592.9,3.415]
[1744529695078,0.31001378,593.41,592.9,3.415]
[1744529695278,0.31001378,593.43,592.9,3.415]
[1744529695478,0.31001378,593.42,592.9,3.415]
[1744529695680,0.31001378,593.41,592.9,3.415]
[1744529695980,0.31001378,593.4,592.9,3.415]
[1744529696180,0.31001378,593.43,592.9,3.415]
[1744529696387,0.31001378,593.42,592.9,3.415]
[1744529696582,0.31001378,593.43,592.9,3.415]
[1744529696783,0.29347647,593.44,592.9,3.415]
[1744529696983,0.31002054,593.43,592.9,3.415]
[1744529697178,0.31002054,593.46,592.9,3.415]
[1744529697387,0.31002054,593.45,592.9,3.415]
[1744529697584,0.31002054,593.46,592.9,3.415]
[1744529698487,0.29347276,593.45,592.9,3.415]
[1744529698686,0.31002054,593.44,592.9,3.415]
[1744529700187,0.31002054,593.43,592.9,3.415]
[1744529700488,0.31002054,593.42,592.9,3.415]
[1744529700787,0.31002054,593.41,592.9,3.415]
[1744529700992,0.31002054,593.46,592.9,3.415]
[1744529701188,0.31002054,593.4,592.9,3.415]
[1744529701391,0.31002054,593.39,592.9,3.415]
[1744529701683,0.31002054,593.38,592.9,3.415]
[1744529701883,0.31002054,593.43,592.9,3.415]
[1744529702092,0.31002054,593.42,592.9,3.415]
[1744529702282,0.31002054,593.43,592.9,3.415]
[1744529703188,0.31002054,593.46,592.9,3.415]
[1744529703389,0.31002054,593.45,592.9,3.415]
[1744529703687,0.31002054,593.46,592.9,3.415]
[1744529703887,0.33700102,593.47,592.9,3.415]
[1744529703888,0.31002054,593.45,592.9,3.415]
[1744529704090,0.31002054,593.46,592.9,3.415]
[1744529704284,0.29348266,593.44,592.9,3.415]
[1744529704493,0.31002054,593.43,592.9,3.415]
[1744529706190,0.31002054,593.46,592.9,3.415]
[1744529706395,0.29348637,593.42,592.9,3.415]
[1744529706592,0.31002054,593.41,592.9,3.415]
[1744529709195,0.29348885,593.4,592.9,3.415]
[1744529709597,0.31002054,593.39,592.9,3.415]
[1744529710597,0.31004828,593.38,592.9,3.415]
[1744529710797,0.31004828,593.37,592.9,3.415]
[1744529710997,0.31004828,593.39,592.9,3.415]
[1744529711194,0.31004828,593.38,592.9,3.415]
[1744529711493,0.31004828,593.39,592.9,3.415]
[1744529711697,0.31004828,593.38,592.9,3.415]
[1744529711898,0.33700102,593.47,592.9,3.415]
[1744529711899,0.31004828,593.39,592.9,3.415]
[1744529712194,0.31004829,593.38,592.9,3.415]
[1744529712396,0.31004829,593.46,592.9,3.415]
[1744529712598,0.31004829,593.37,592.9,3.415]
[1744529712797,0.31004829,593.36,592.9,3.415]
[1744529713098,0.31004829,593.35,592.9,3.415]
[1744529713306,0.29349999,593.35,592.9,3.415]
[1744529713498,0.31004829,593.34,592.9,3.415]
[1744529713698,0.29349999,593.35,592.9,3.415]
[1744529713899,0.31008001,593.34,592.9,3.415]
[1744529715201,0.33700102,593.47,592.9,3.415]
[1744529715403,0.3100805,593.46,592.9,3.415]
[1744529716204,0.29349999,593.45,592.9,3.415]
[1744529716504,0.3100805,593.44,592.9,3.415]
[1744529717003,0.3100795,593.43,592.9,3.415]
[1744529717196,0.29349999,593.45,592.9,3.415]
[1744529717197,0.3100795,593.42,592.9,3.415]
[1744529717401,0.3100795,593.44,592.9,3.415]
[1744529717701,0.3100795,593.43,592.9,3.415]
[1744529717897,0.3100795,593.44,592.9,3.415]
[1744529718204,0.29350246,593.42,592.9,3.415]
[1744529718403,0.3100795,593.41,592.9,3.415]
[1744529721206,0.3100795,593.4,592.9,3.415]
[1744529721404,0.3100795,593.46,592.9,3.415]
[1744529721709,0.3100795,593.45,592.9,3.415]
[1744529721907,0.3100795,593.44,592.9,3.415]
[1744529722107,0.3100795,593.46,592.9,3.415]
[1744529722307,0.29349999,593.44,592.9,3.415]
[1744529722609,0.3100795,593.43,592.9,3.415]
[1744529724308,0.3100795,593.45,592.9,3.415]
[1744529725209,0.29350123,593.44,592.9,3.415]
[1744529725405,0.3100795,593.43,592.9,3.415]
[1744529727109,0.3100795,593.45,592.9,3.415]
[1744529727303,0.29350123,593.42,592.9,3.415]
[1744529727504,0.3100795,593.41,592.9,3.415]
[1744529728010,0.29350123,593.42,592.9,3.415]
[1744529728211,0.31007196,593.41,592.9,3.415]
[1744529729607,0.29350123,593.42,592.9,3.415]
[1744529729911,0.31007185,593.41,592.9,3.415]
[1744529730110,0.31007185,593.45,592.9,3.415]
[1744529730411,0.29350123,593.41,592.9,3.415]
[1744529730611,0.31007185,593.4,592.9,3.415]
[1744529733312,0.31007185,593.45,592.9,3.415]
[1744529734312,0.29350123,593.44,592.9,3.415]
[1744529734513,0.31007185,593.43,592.9,3.415]
[1744529735915,0.29350123,593.44,592.9,3.415]
[1744529736215,0.31008025,593.43,592.9,3.415]
[1744529736408,0.31008025,593.45,592.9,3.415]
[1744529737218,0.29350123,593.44,592.9,3.415]
[1744529737416,0.31008025,593.43,592.9,3.415]
[1744529739122,0.31008446,593.42,592.9,3.415]
[1744529739322,0.31008446,593.41,592.9,3.415]
[1744529739622,0.31008446,593.4,592.9,3.415]
[1744529739815,0.31008446,593.45,592.9,3.415]
[1744529740017,1.28024234,593.42,592.9,3.415]
[1744529740317,0.31008446,593.41,592.9,3.415]
[1744529742121,1.5903268,593.41,592.9,3.415]
[1744529742426,0.31008201,593.4,592.9,3.415]
[1744529743227,0.29351236,593.39,592.9,3.415]
[1744529743427,0.31008201,593.38,592.9,3.415]
[1744529745226,0.29351484,593.37,592.9,3.415]